fUSD/lending_fUSD_20240916
["ID","MTS","AMOUNT","RATE_DAILY","PERIOD"]
[338312248,1726488732906,-536.06,0.00014999,2]
[338312249,1726488732915,-536.06,0.00014999,2]
[338312250,1726488732925,-536.06,0.00014999,2]
[338312251,1726488732935,-536.07430831,0.00014999,2]
[338312252,1726488732944,-500.0,0.00014999,2]
[338312253,1726488732953,-500.0,0.00014999,2]
[338312254,1726488732962,-243.58500361,0.00014999,2]
[338312255,1726488732971,-500.0,0.00014999,2]
[338312256,1726488732980,-500.0,0.00014999,2]
[338312257,1726488732990,-504.57740467,0.00014999,2]
[338312258,1726488732999,-519.45,0.00014999,2]
[338312259,1726488733008,-519.45,0.00014999,2]
[338312260,1726488733018,-519.45,0.00014999,2]
[338312261,1726488733027,-519.45,0.00014999,2]
[338312262,1726488733036,-519.61366753,0.00014999,2]
[338312263,1726488733047,-1000.0,0.00014999,2]
[338312264,1726488733057,-1007.1523,0.00014999,2]
[338312265,1726488733067,-2975995.86935831,0.00015,2]
[338312266,1726488733076,-471260.59775332,0.00015,2]
[338312267,1726488734500,-88814.39773596,0.00015,2]
[338312268,1726488735075,-151.0,0.00014794,2]
[338312269,1726488735085,-84681.27681673,0.00015,2]
[338312270,1726488735209,1164.0,0.00028,120]
[338312271,1726488735541,153.31,0.00010959,2]
[338312273,1726489029282,462.31,0.00012062,2]
[338312274,1726489163978,3791.2585,0.00028,120]
[338312275,1726489268647,500.0,0.00028,120]
[338312276,1726489268712,500.0,0.00028,120]
[338312277,1726489269129,500.0,0.00028,120]
[338312278,1726489269701,500.0,0.00028,120]
[338312279,1726489270147,374.46508238,0.00028,120]
[338312280,1726489298421,153.31,0.00010959,2]
[338312281,1726489509285,2000.0,0.00027999,120]
[338312282,1726489524252,2000.0,0.00027999,120]
[338312283,1726489531064,2000.0,0.00028,120]
[338312284,1726489537409,2000.0,0.00028,120]
[338312285,1726489551413,2000.0,0.00028,120]
[338312286,1726489560695,2000.0,0.00028,120]
[338312287,1726489563059,462.53,0.00011674,2]
[338312288,1726489567793,2000.0,0.00028,120]
[338312289,1726489575004,2000.0,0.00028,120]
[338312290,1726489582644,2000.0,0.00028,120]
[338312291,1726489589862,510.0,0.00027397,120]
[338312292,1726489590112,510.0,0.00027671,120]
[338312293,1726489590393,510.0,0.00027945,120]
[338312294,1726489591317,2000.0,0.00028,120]
[338312295,1726489598919,2000.0,0.00028,120]
[338312296,1726489638597,2000.0,0.00027999,120]
[338312297,1726489649124,2000.0,0.00028,120]
[338312300,1726489671487,2000.0,0.00028,120]
[338312302,1726489681934,2000.0,0.00028,120]
[338312303,1726489683991,12513.2768451,0.00013,2]
[338312304,1726489684014,15777.96556535,0.00013,2]
[338312305,1726489692973,2000.0,0.00028,120]
[338312306,1726489702473,2000.0,0.00028,120]
[338312307,1726489710831,2000.0,0.00028,120]
[338312308,1726489718253,2000.0,0.00028,120]
[338312311,1726489726088,2000.0,0.00028,120]
[338312312,1726489732554,2000.0,0.00028,120]
[338312313,1726489739643,2000.0,0.00028,120]
[338312314,1726489746573,2000.0,0.00028,120]
[338312315,1726489754538,2000.0,0.00028,120]
[338312316,1726489763365,2000.0,0.00028,120]
[338312317,1726489770136,2000.0,0.00028,120]
[338312318,1726489775936,2000.0,0.00028,120]
[338312319,1726489786436,2000.0,0.00028,120]
[338312325,1726489813128,151.1,0.00010959,2]
[338312333,1726489832276,-179.99297769,0.00013388,2]
[338312334,1726489832286,-1329.782875,0.0001342,2]
[338312335,1726489832295,-150.0,0.00013488,2]
[338312336,1726489832304,-150.0,0.00013488,2]
[338312337,1726489832313,-150.0,0.00013488,2]
[338312338,1726489832323,-150.0,0.00013488,2]
[338312339,1726489832332,-200.0,0.00013533,2]
[338312340,1726489832341,-629.64,0.0001355,2]
[338312341,1726489832350,-8219.39,0.00013566,2]
[338312342,1726489832359,-250.0,0.00013582,2]
[338312343,1726489832368,-150.22,0.00013591,2]
[338312344,1726489832377,-1000.0,0.00013624,2]
[338312345,1726489832386,-171.04,0.00013654,2]
[338312346,1726489832395,-250.0,0.00013695,2]
[338312347,1726489832403,-999.99,0.00013695,2]
[338312348,1726489832412,-4329.79582055,0.00013695,2]
[338312466,1726489840458,-589.031068,0.00013695,2]
[338313083,1726489864811,688.0,0.00026,60]
[338313084,1726489867102,500.0,0.00028,120]
[338313085,1726489873284,450.0,0.00028,120]
[338313086,1726489883141,3798.6326575,0.00028,120]
[338313087,1726489957974,1735.91845156,0.00028,120]
[338313088,1726490049505,463.19,0.00011775,2]
[338313101,1726490466883,500.0,0.00028,120]
[338313102,1726490552560,462.77,0.00011667,2]
[338313105,1726490759625,303.31702927,0.00027397,120]
[338313106,1726490780641,160.16429378,0.00013,2]
[338313107,1726490908696,2000.0,0.00025999,60]
[338313120,1726491032461,-200.0,0.00013249,2]
[338313121,1726491032484,-500.93,0.0001325,2]
[338313122,1726491032505,-150.0,0.00013326,2]
[338313123,1726491032528,-167.61,0.00013347,2]
[338313124,1726491032556,-250.0,0.00013372,2]
[338313125,1726491032575,-5290.73658557,0.0001339,2]
[338313126,1726491032584,-171.93,0.0001339,2]
[338313127,1726491032593,-619.94,0.00013407,2]
[338313128,1726491032602,-429.01,0.00013419,2]
[338313129,1726491032611,-564.56,0.00013452,2]
[338313130,1726491032620,-949.85,0.00013452,2]
[338313131,1726491032629,-558.28750443,0.00013455,2]
[338313132,1726491032640,-241.71249557,0.00013455,2]
[338313133,1726491032649,-150.24,0.00013476,2]
[338313134,1726491032658,-464.61,0.00013509,2]
[338313135,1726491032667,-250.0,0.00013524,2]
[338313136,1726491032676,-1231.36,0.00013562,2]
[338313137,1726491032685,-176.33,0.00013578,2]
[338313138,1726491032694,-2000.0,0.000136,2]
[338313139,1726491032703,-1666.9,0.000136,2]
[338313140,1726491032712,-175.0,0.00013624,2]
[338313141,1726491032722,-175.0,0.00013695,2]
[338313142,1726491032731,-1539.8295,0.00013695,2]
[338313145,1726491032739,-150.0,0.00013699,2]
[338313148,1726491032748,-175.8,0.00013699,2]
[338313150,1726491032757,-200.0,0.00013745,2]
[338313152,1726491032766,-191.25,0.00013788,2]
[338313153,1726491032775,-170.97,0.0001383,2]
[338313154,1726491032784,-462.77,0.00013931,2]
[338313155,1726491032793,-150.0,0.00014059,2]
[338313156,1726491032803,-150.0,0.0001442,2]
[338313157,1726491032811,-13184.77956155,0.00014725,2]
[338313158,1726491032820,-12965.58,0.00014735,7]
[338313159,1726491032829,-12965.58,0.00014735,7]
[338313160,1726491032837,-10013.8090369,0.00014735,7]
[338313161,1726491032848,-869.83964509,0.00014735,7]
[338313162,1726491032859,-279.58006084,0.00014735,7]
[338313163,1726491032870,-1802.35125717,0.00014735,7]
[338313164,1726491032878,-12965.58,0.00014735,7]
[338313165,1726491032888,-1539.82951,0.0001474,2]
[338313166,1726491032897,-500.0,0.00014778,2]
[338313167,1726491032905,-200.0,0.00014778,2]
[338313168,1726491032914,-150.0,0.0001478,2]
[338313169,1726491032923,-1737.51257585,0.00014787,2]
[338313170,1726491032931,-2114.88370176,0.0001479,2]
[338313171,1726491032940,-1197.39864416,0.00014793,5]
[338313172,1726491032949,-1197.39864416,0.00014793,5]
[338313173,1726491032958,-1197.39864416,0.00014793,5]
[338313174,1726491032967,-315.5,0.000148,2]
[338313175,1726491032975,-2000.0,0.000148,2]
[338313176,1726491032984,-159.61,0.0001488,2]
[338313177,1726491032993,-18184.59575334,0.000149,3]
[338313178,1726491033002,-174.49724789,0.000149,2]
[338313179,1726491033011,-5052.178,0.000149,2]
[338313180,1726491033020,-11016.45676077,0.000149,2]
[338313181,1726491033029,-686.59656093,0.000149,2]
[338313182,1726491033038,-6285.44078731,0.000149,2]
[338313183,1726491033047,-160.9044032,0.000149,2]
[338313184,1726491033056,-204.63828779,0.000149,2]
[338313185,1726491033065,-164.67766966,0.000149,2]
[338313186,1726491033075,-2999.78858991,0.000149,2]
[338313187,1726491033084,-296.19962074,0.00014973,2]
[338313188,1726491033094,-151.47,0.0001499,2]
[338313189,1726491033103,-151.47,0.0001499,2]
[338313190,1726491033111,-151.47,0.0001499,2]
[338313191,1726491033120,-151.47,0.0001499,2]
[338313192,1726491033130,-151.47,0.0001499,2]
[338313193,1726491033139,-151.47,0.0001499,2]
[338313194,1726491033149,-191.8705803,0.0001499,2]
[338313195,1726491033158,-191.8705803,0.0001499,2]
[338313196,1726491033167,-311.65418896,0.00014999,2]
[338313197,1726491033177,-500.0,0.00014999,2]
[338313198,1726491033186,-202.3411124,0.00014999,2]
[338313199,1726491033195,-622.5,0.00014999,2]
[338313200,1726491033204,-622.5,0.00014999,2]
[338313201,1726491033213,-622.5,0.00014999,2]
[338313202,1726491033222,-622.5,0.00014999,2]
[338313203,1726491033231,-622.5,0.00014999,2]
[338313204,1726491033242,-622.5,0.00014999,2]
[338313205,1726491033253,-622.5,0.00014999,2]
[338313206,1726491033262,-622.5,0.00014999,2]
[338313207,1726491033272,-622.5,0.00014999,2]
[338313208,1726491033281,-622.5,0.00014999,2]
[338313209,1726491033292,-622.5,0.00014999,2]
[338313210,1726491033301,-622.5,0.00014999,2]
[338313211,1726491033310,-622.5,0.00014999,2]
[338313212,1726491033320,-622.5,0.00014999,2]
[338313213,1726491033329,-622.5,0.00014999,2]
[338313214,1726491033338,-622.5,0.00014999,2]
[338313215,1726491033347,-622.5,0.00014999,2]
[338313216,1726491033356,-622.5,0.00014999,2]
[338313217,1726491033365,-622.5,0.00014999,2]
[338313218,1726491033375,-622.5,0.00014999,2]
[338313219,1726491033384,-622.5,0.00014999,2]
[338313220,1726491033393,-622.5,0.00014999,2]
[338313221,1726491033403,-622.5,0.00014999,2]
[338313222,1726491033412,-622.5,0.00014999,2]
[338313223,1726491033421,-512.0,0.00015,2]
[338313224,1726491033430,-362905.95026032,0.00015,2]
[338313225,1726491033439,-9305.56296634,0.00015,2]
[338313226,1726491033451,-2680.38836122,0.00015,2]
[338313227,1726491038442,-11104.58702937,0.00015,2]
[338313228,1726491038500,-544.61761896,0.00015,2]
[338313229,1726491038555,-7225.22519846,0.00015,2]
[338313230,1726491038566,-536.0372775,0.00015,2]
[338313231,1726491038577,-27101.48370032,0.00015,2]
[338313232,1726491038588,-962.73994072,0.00015,2]
[338313233,1726491038599,-110694.83574913,0.00015,2]
[338313234,1726491038721,-376.57690114,0.00015,2]
[338313235,1726491038732,-1599.21665465,0.00015,2]
[338313236,1726491038744,-2214.92714927,0.00015,2]
[338313237,1726491038754,-445.42957939,0.00015,2]
[338313238,1726491038778,-805.13156652,0.00015,2]
[338313240,1726491038789,-1775.89,0.00015,2]
[338313243,1726491038802,-410.82807031,0.00015,2]
[338313352,1726491040338,-7163.33130444,0.00015,2]
[338313353,1726491040350,-674.47609604,0.00015,2]
[338313354,1726491040402,-3537.73874138,0.00015,2]
[338313355,1726491040459,-1275.2531778,0.00015,2]
[338313356,1726491040471,-1748.56626615,0.00015,2]
[338313357,1726491040482,-1467.8621135,0.00015,2]
[338313358,1726491040493,-1368.05667035,0.00015,2]
[338313359,1726491040504,-286.07329505,0.00015,2]
[338313360,1726491040516,-211709.10608023,0.00015,2]
[338313361,1726491040528,-28803.56104091,0.00015,2]
[338313362,1726491040539,-2025.26791969,0.00015,2]
[338313363,1726491040551,-1410.17870223,0.00015,2]
[338313364,1726491040575,-615.61579363,0.00015,2]
[338313365,1726491040586,-2139.91703947,0.00015,2]
[338313366,1726491040596,-78079.80296049,0.00015,2]
[338313367,1726491040607,-1131.59228596,0.00015,2]
[338313368,1726491040618,-1206.83348292,0.00015,2]
[338313369,1726491040629,-730.55933782,0.00015,2]
[338313370,1726491040652,-2792.39821021,0.00015,2]
[338313371,1726491040663,-1333.31807868,0.00015,2]
[338313372,1726491040674,-722.9693,0.00015,2]
[338313373,1726491040684,-6403.11643755,0.00015,2]
[338313374,1726491040696,-500.0,0.00015,2]
[338313375,1726491040707,-495.55389865,0.00015,2]
[338313376,1726491040718,-1895.88076688,0.00015,2]
[338313377,1726491040729,-375.65565519,0.00015,2]
[338313378,1726491040748,-563.72981145,0.00015,2]
[338313380,1726491040759,-650.0,0.00015,2]
[338313383,1726491040770,-1087.46169813,0.00015,2]
[338313384,1726491040780,-1259.96086,0.00015,2]
[338313583,1726491043426,-214022.61502578,0.00015,2]
[338313586,1726491043438,-56162.05529899,0.00015,2]
[338313588,1726491043449,-1728.60777019,0.00015,2]
[338313592,1726491043482,-5867.91004832,0.00015,2]
[338313599,1726491043538,-7365.16641705,0.00015,2]
[338313606,1726491043595,-6723.34743954,0.00015,2]
[338313608,1726491043606,-2325.34922941,0.00015,2]
[338313693,1726491044405,-1535.85323252,0.00015,2]
[338313845,1726491046415,-355.99679615,0.00015,2]
[338313846,1726491046428,-308.1,0.00015,2]
[338313847,1726491046630,-1185.68250309,0.00015,2]
[338313877,1726491069066,500.0,0.00028,120]
[338313888,1726491179416,1000.0,0.00028,120]
[338313889,1726491188669,459.7,0.00012169,2]
[338313890,1726491193528,500.0,0.00028,120]
[338313893,1726491667259,500.0,0.00028,120]
[338313894,1726491671896,800.0,0.00027,120]
[338313895,1726491697161,160.0,0.00027,120]
[338313896,1726491708598,150.0,0.00027,120]
[338313897,1726491708891,457.23,0.00011797,2]
[338313898,1726491746913,500.0,0.00028,120]
[338313899,1726491793635,2000.0,0.00028,120]
[338313901,1726491900791,1000.0,0.00028,120]
[338313902,1726492079199,153.36,0.00010959,2]
[338313905,1726492203433,666.0,0.00028,120]
[338313907,1726492231481,-150.0,0.00013488,2]
[338313908,1726492231491,-150.0,0.00013488,2]
[338313909,1726492231500,-150.0,0.00013488,2]
[338313910,1726492231510,-154.47,0.00013553,2]
[338313911,1726492231519,-7805.12171124,0.00013569,2]
[338313912,1726492231529,-174.56,0.00013569,2]
[338313913,1726492231538,-250.0,0.00013666,2]
[338313914,1726492231547,-150.0,0.00013699,2]
[338313915,1726492231556,-457.83,0.00013709,2]
[338313916,1726492231566,-640.0,0.0001371,2]
[338313917,1726492231576,-153.0,0.00013751,2]
[338313918,1726492231585,-163.17,0.00013777,2]
[338313919,1726492231595,-26919.36,0.00013787,2]
[338313920,1726492231604,-174.2,0.00013823,2]
[338313921,1726492231613,-504.52,0.00013823,2]
[338313922,1726492231623,-1688.54,0.00013823,2]
[338313923,1726492231632,-250.0,0.00013826,2]
[338313924,1726492231641,-619.39,0.00013826,2]
[338313925,1726492231651,-169.6,0.00013861,2]
[338313926,1726492231660,-299.99,0.00013861,2]
[338313927,1726492231669,-150.0,0.00013987,2]
[338313928,1726492231679,-200.0,0.00014052,2]
[338313929,1726492231689,-150.0,0.00014059,2]
[338313930,1726492231698,-457.23,0.00014061,2]
[338313931,1726492231711,-360.0,0.00014147,2]
[338313932,1726492231720,-1240.4,0.00014286,2]
[338313933,1726492231731,-150.0,0.00014286,2]
[338313934,1726492231740,-177.07,0.00014287,2]
[338313935,1726492231749,-150.0,0.0001442,2]
[338313936,1726492231759,-150.0,0.00014487,2]
[338313937,1726492231768,-349.1162085,0.00014753,2]
[338313938,1726492231778,-150.0,0.0001478,2]
[338313939,1726492231788,-283.95,0.000148,2]
[338313940,1726492231797,-23830.31703739,0.0001487,2]
[338313941,1726492231806,-500.0,0.0001488,2]
[338313942,1726492231815,-200.0,0.0001488,2]
[338313943,1726492231824,-163.17,0.0001489,2]
[338313944,1726492231834,-201.34185824,0.000149,2]
[338313945,1726492231843,-174.49724788,0.000149,2]
[338313946,1726492231852,-154.55,0.000149,31]
[338313947,1726492231861,-154.55,0.000149,31]
[338313948,1726492231871,-154.55,0.000149,31]
[338313949,1726492231880,-154.55,0.000149,31]
[338313950,1726492231889,-154.55,0.000149,31]
[338313951,1726492231899,-154.55,0.000149,31]
[338313952,1726492231908,-154.55,0.000149,31]
[338313953,1726492231918,-154.55,0.000149,31]
[338313954,1726492231928,-154.55,0.000149,31]
[338313955,1726492231937,-154.55,0.000149,31]
[338313956,1726492231947,-154.55,0.000149,31]
[338313957,1726492231956,-154.55,0.000149,31]
[338313958,1726492231966,-4668.92854156,0.000149,2]
[338313960,1726492231975,-157.15454422,0.000149,2]
[338313962,1726492231984,-184.03441111,0.000149,2]
[338313963,1726492231994,-514.17786847,0.000149,2]
[338313964,1726492232004,-179.1312418,0.00014986,2]
[338313965,1726492232013,-261.94129289,0.00014986,2]
[338313966,1726492232022,-217.34399043,0.00014986,2]
[338313967,1726492232032,-163.17,0.0001499,2]
[338313968,1726492232041,-2000.0,0.0001499,2]
[338313969,1726492232050,-151.35,0.0001499,2]
[338313970,1726492232060,-1940.364138,0.00014998,2]
[338313971,1726492232069,-500.0,0.00014999,2]
[338313972,1726492232079,-431.99324153,0.00014999,2]
[338313973,1726492232088,-311.65418896,0.00014999,2]
[338313974,1726492232097,-361.30435058,0.00014999,2]
[338313975,1726492232107,-264152.05571078,0.00015,2]
[338313976,1726492232119,-1072.92778133,0.00015,2]
[338313977,1726492232130,-457.01764906,0.00015,2]
[338313978,1726492232141,-14094.7721305,0.00015,2]
[338313979,1726492232152,-17456.59072017,0.00015,2]
[338313980,1726492232163,-752.98091281,0.00015,2]
[338313981,1726492232174,-348.26422483,0.00015,2]
[338313982,1726492232185,-1243.42241269,0.00015,2]
[338313983,1726492232195,-7952.02716242,0.00015,2]
[338313984,1726492232207,-4479.00990803,0.00015,2]
[338314004,1726492240980,-387.36351473,0.000149,2]
[338314005,1726492240990,-403.27000364,0.00014973,2]
[338314006,1726492240999,-135523.21999542,0.00015,2]
[338314007,1726492241134,-441.66001173,0.00015,2]
[338314008,1726492241145,-78192.71671266,0.00015,2]
[338314009,1726492241155,-570.23685725,0.00015,2]
[338314010,1726492241166,-1839.93992941,0.00015,2]
[338314011,1726492241177,-384.30158449,0.00015,2]
[338314012,1726492241192,-1089.05208853,0.00015,2]
[338314013,1726492241203,-4460.44926108,0.00015,2]
[338314014,1726492241217,-389.44550813,0.00015,2]
[338314015,1726492241228,-230291.21241123,0.00015,2]
[338314016,1726492241239,-6905.52589726,0.00015,2]
[338314017,1726492241253,-29357.46720003,0.00015,2]
[338314018,1726492241264,-83753.99677017,0.00015,2]
[338314019,1726492241274,-327995.49225876,0.00015,2]
[338314022,1726492242593,-58294.72829759,0.00015,2]
[338314037,1726492245627,-213.73978059,0.00015,2]
[338314038,1726492245741,-284.05503207,0.00015,2]
[338314039,1726492245885,-2082.4977933,0.00015,2]
[338314040,1726492245896,-721.62621433,0.00015,2]
[338314044,1726492267576,500.0,0.00028,120]
[338314045,1726492322461,450.49,0.00012378,2]
[338314046,1726492457566,150.0,1.028e-05,2]
[338314047,1726492600284,151.1,0.00010959,2]
[338314049,1726492653884,2000.0,0.00028,120]
[338314050,1726492669406,2000.0,0.00028,120]
[338314051,1726492678436,2000.0,0.00028,120]
[338314052,1726492688286,2000.0,0.00028,120]
[338314053,1726492697963,2000.0,0.00028,120]
[338314054,1726492707970,2000.0,0.00028,120]
[338314055,1726492716409,2000.0,0.00028,120]
[338314056,1726492867554,500.0,0.00028,120]
[338314059,1726492918062,447.0,0.0001191,2]
[338314060,1726493012808,395.72998,0.00027855,120]
[338314061,1726493015527,500.0,0.00026179,120]
[338314062,1726493016008,500.0,0.00027855,120]
[338314063,1726493021545,500.0,0.00025553,120]
[338314064,1726493022001,500.0,0.0002632,120]
[338314065,1726493022576,500.0,0.00027088,120]
[338314066,1726493022910,500.0,0.00027855,120]
[338314067,1726493045920,200.0,0.00025407,120]
[338314068,1726493046363,200.0,0.00027855,120]
[338314070,1726493106293,2506.06312086,0.00028,120]
[338314071,1726493108543,10715.93014087,0.00013,2]
[338314072,1726493108569,30000.0,0.00013,2]
[338314073,1726493108594,30000.0,0.00013,2]
[338314074,1726493108619,30000.0,0.00013,2]
[338314075,1726493108643,30000.0,0.00013,2]
[338314076,1726493108667,30000.0,0.00013,2]
[338314077,1726493108692,30000.0,0.00013,2]
[338315496,1726493403381,-348.45949687,0.00012873,2]
[338315497,1726493403404,-161.03010973,0.000129,2]
[338315498,1726493403428,-174.72549939,0.000129,2]
[338315499,1726493403452,-175.01683303,0.00012973,2]
[338315500,1726493403475,-500.0,0.00012973,2]
[338315501,1726493403498,-2093.51960255,0.00012999,2]
[338315502,1726493403521,-150.0,0.00012999,2]
[338315503,1726493413120,151.33,0.0001299,2]
[338315504,1726493423500,500.0,0.00028,120]
[338315512,1726493431664,-149789.01577109,0.00013,2]
[338315513,1726493431674,-173944.12946545,0.00013,2]
[338315514,1726493431725,-118890.05799836,0.00013,2]
[338315515,1726493431787,-308.06435349,0.00013,2]
[338315516,1726493431798,-575.10458265,0.00013,2]
[338315517,1726493431809,-41915.4570063,0.00013,2]
[338315518,1726493431848,-1284.40976051,0.00013,2]
[338315519,1726493431859,-405.84115355,0.00013,2]
[338315520,1726493431871,-3110.50407077,0.00013,2]
[338315521,1726493431882,-38728.88450793,0.00013,2]
[338315539,1726493436222,-140000.0,0.00013,2]
[338315543,1726493437829,-634.7042152,0.00013,2]
[338315544,1726493437841,-7852.73371722,0.00013,2]
[338315545,1726493437890,-5901.89999999,0.00013,2]
[338315546,1726493437901,-21242.7323858,0.00013,2]
[338315552,1726493438755,428.61593029,0.00028,120]
[338315555,1726493439846,-6757.96750055,0.00013,2]
[338315556,1726493439858,-89099.0984953,0.00013,2]
[338315557,1726493439899,-141788.03169756,0.00013,2]
[338315558,1726493439911,-60335.12837171,0.00013,2]
[338315559,1726493439922,-688.59429274,0.00013,2]
[338315560,1726493439971,-46421.95683745,0.00013,2]
[338315561,1726493439983,-588.21408,0.00013,2]
[338315562,1726493440199,-450.81954962,0.00013,2]
[338315710,1726493442692,-674.74381166,0.00013,2]
[338315711,1726493442703,-660.19,0.00013,2]
[338315712,1726493442714,-2204.45423647,0.00013,2]
[338315713,1726493442725,-22212.84406301,0.00013,2]
[338315714,1726493442752,-5399.09436826,0.00013,2]
[338315715,1726493442763,-86207.99878685,0.00013,2]
[338315716,1726493443970,-1006.62630079,0.00013,2]
[338315717,1726493443982,-352.72799642,0.00013,2]
[338315718,1726493443994,-673.15213874,0.00013,2]
[338315719,1726493444005,-695.84866301,0.00013,2]
[338315720,1726493444016,-5674.84497642,0.00013,2]
[338315721,1726493444028,-2070.26215738,0.00013,2]
[338315722,1726493444039,-3075.72210345,0.00013,2]
[338315723,1726493444050,-2115.73344882,0.00013,2]
[338315724,1726493444062,-512.00786555,0.00013,2]
[338315725,1726493444073,-584.94556398,0.00013,2]
[338315726,1726493444084,-1269.9797806,0.00013,2]
[338315727,1726493444095,-1375877.95067602,0.00013,2]
[338315728,1726493444105,-2079.47744929,0.00013,2]
[338315729,1726493444114,-183.2981904,0.00013,2]
[338315730,1726493444123,-174.72549938,0.000134,2]
[338315731,1726493444132,-154.47,0.00013443,2]
[338315732,1726493444141,-250.0,0.00013464,2]
[338315733,1726493444150,-153.0,0.00013593,2]
[338315734,1726493444160,-150.01,0.0001377,2]
[338315735,1726493444169,-228.91,0.00013821,2]
[338315736,1726493444179,-250.0,0.00013839,2]
[338315737,1726493444188,-546.83,0.00013844,2]
[338315738,1726493444197,-175.02,0.00013859,2]
[338315739,1726493444206,-174.72549938,0.000139,2]
[338315740,1726493444215,-161.80701057,0.00014,2]
[338315741,1726493444224,-1000.0,0.00014072,2]
[338315742,1726493444233,-156.0,0.00014104,2]
[338315743,1726493444242,-447.0,0.00014174,2]
[338315744,1726493444251,-150.01,0.00014206,2]
[338315745,1726493444261,-174.72549938,0.000144,2]
[338315746,1726493444271,-10804.65,0.00014462,7]
[338315747,1726493444280,-10804.65,0.00014462,7]
[338315748,1726493444290,-10804.65,0.00014462,7]
[338315749,1726493444299,-10804.65,0.00014462,7]
[338315750,1726493444308,-421.72536693,0.00014596,2]
[338315751,1726493444317,-150.01,0.00014643,2]
[338315752,1726493444326,-10804.65,0.00014735,7]
[338315753,1726493444335,-10804.65,0.00014735,7]
[338315754,1726493444347,-10942.58180465,0.00014789,2]
[338315755,1726493444358,-255.55,0.000148,2]
[338315756,1726493444369,-1026.55301,0.0001486,2]
[338315757,1726493444379,-500.0,0.0001488,2]
[338315758,1726493444389,-200.0,0.0001488,2]
[338315759,1726493444399,-245.39924032,0.000149,2]
[338315760,1726493444409,-201.34185824,0.000149,2]
[338315761,1726493444420,-154.57,0.000149,31]
[338315762,1726493444430,-154.57,0.000149,31]
[338315763,1726493444441,-154.57,0.000149,31]
[338315764,1726493444451,-154.57,0.000149,31]
[338315765,1726493444460,-154.57,0.000149,31]
[338315766,1726493444470,-154.57,0.000149,31]
[338315767,1726493444479,-174.72549938,0.000149,2]
[338315768,1726493444489,-1026.553,0.0001494,2]
[338315769,1726493444499,-1933.2358635,0.00014998,2]
[338315770,1726493444508,-1309.626,0.00014999,2]
[338315771,1726493444518,-274.764,0.00014999,2]
[338315772,1726493444528,-533202.78596776,0.00015,2]
[338315773,1726493444541,-1130.77964873,0.00015,2]
[338315774,1726493444552,-15843.63179293,0.00015,2]
[338315775,1726493444566,-835.04991627,0.00015,2]
[338315776,1726493444579,-3518.03566163,0.00015,2]
[338315777,1726493444591,-3799.999993,0.00015,2]
[338315778,1726493444603,-2743.43994,0.00015,2]
[338315779,1726493444615,-513.18500005,0.00015,2]
[338315780,1726493444627,-701.666667,0.00015,2]
[338315781,1726493444639,-489.29187735,0.00015,2]
[338315782,1726493444652,-756.68786918,0.00015,2]
[338315783,1726493444664,-5150.83994801,0.00015,2]
[338315784,1726493444676,-1175.26064,0.00015,2]